{"text_format":"3","workbook":"xlsx","n_sheets":8,"sheets":["الإرشادات","الروتين المعتاد","المعارف المختلفون من وقت لآخر","الاحتمالات المتوقعة","خطة شبكات Q1","خطة شبكات Q2","خطة شبكات Q3","خطة شبكات Q4"],"not_rendered":{"defined_names":7},"read":"whole","date_system":"1900"}

{"sheet":"الإرشادات","index":0,"n_rows":17,"n_cols":5,"rows_kept":17,"merged":[[0,0,0,2],[1,1,1,6],[2,1,2,6],[3,1,3,6],[4,1,4,6],[5,1,5,6],[6,1,6,6],[7,1,7,6],[8,1,8,6],[9,1,9,6],[10,1,10,6],[11,1,11,6]]}
["متتبع التواصل",null,null,"الإرشادات"]
[null,"1. حدد الفئة التي تقع ضمنها جهة الاتصال الخاصة بك:"]
[null,"• الأشخاص المعتادون - الأشخاص الذين ترغب في البقاء على اتصال معهم بشكل منتظم جداً"]
[null,"• المعارف المختلفون من وقت لآخر - الأشخاص الذين ترغب في التواصل معهم بضع مرات في السنة"]
[null,"• جهات الاتصال المتوقع التواصل معهم - الأشخاص/الشركات الذين ترغب في الاحتفاظ بهم عندما يحين الوقت المناسب"]
[null,"2. افتح علامة تبويب ورقة العمل المقابلة."]
[null,"3. أدخل معلوماتهم (لإنشاء سطر جديد في خلية، اضغط على Alt+Enter في Windows أو Option+Return على جهاز Mac)."]
[null,"تحقق هنا من إرشادات السطر الجديدة لتطبيقات Excel للأجهزة المحمولة."]
[null,"4. في العمود \"تاريخ المتابعة\"، احذف نموذج التاريخ/الصيغة، وأدخل الوقت الذي تريد التواصل معهم فيه، \nواضغط على مفتاح الإدخال Enter."]
[null,"5. سيظهر العمود \"تاريخ المتابعة\" باللون الأحمر عندما يكون التاريخ قريباً جداً والأصفر عند اقترابه، و \nالأخضر عندما يكون لديك بعض الوقت."]
[null,"6. مع اقتراب تاريخ المتابعة، سيتغير اللون وفقاً لذلك."]
[null,"7. بمجرد التواصل مع جهة الاتصال الخاصة بك، اكتب \"نعم\" في العمود تم؟. سيكون التاريخ باللون الرمادي. "]
[null,"8. إذا كنت تريد التواصل معهم مرة أخرى، فاستبدل \"نعم\" بـ \"لا\"، واكتب \"تاريخ متابعة\"."]
[null,null,"اللون الأحمر","اللون الأصفر","اللون الأخضر"]
[null,"الأشخاص المعتادون","بعد 1 إلى 3 أيام","بعد 4-7 أيام","من 8 إلى 14 يوماً أو أكثر"]
[null,"المعارف المختلفون من وقت لآخر","بعد 1 إلى 7 أيام","بعد 8 إلى 45 يوماً","من 46 إلى 90 يوماً أو أكثر"]
[null,"جهات الاتصال المتوقع التواصل معهم","بعد 1 إلى 14 يوماً","بعد 15 إلى 60 يوماً","من 60 إلى 120 يوماً أو أكثر"]

{"sheet":"الروتين المعتاد","index":1,"n_rows":7,"n_cols":8,"rows_kept":7,"merged":[[0,0,0,2]]}
["متتبع التواصل",null,null,"الأشخاص المعتادون"]
[]
["الاسم","الشركة","معلومات الاتصال","مكان اللقاء","الملاحظات","تاريخ المتابعة","تم","ملاحظات من المحادثة"]
["براء مستغانمي","Adventure Works","مدير المشروع\nbaraa@adventure-works.com\n(234) 555-0134\nadventure-works.com\nlinkedin.com/in/Baraa-Mestaghanmi","المعرض التجاري 2010","اسأل عن الابنة سهام وكيف يكون إعادة التصميم. لا يرتاح للمجموعات الكبيرة والطعام الحار.",{"$f":"TODAY()+8","v":"2021-07-24"},"لا"]
["الاسم","اسم الشركة","المسمى الوظيفي\nعنوان البريد الإلكتروني\nرقم الهاتف\nموقع الويب\nارتباطات ملفات التعريف الاجتماعية\n","الموقع","ضع أي ملاحظات تريد تذكرها حول هذا الشخص؛ مكان لقاءه، وما تحدثت عنه، وما تريد إظهاره في المرة القادمة التي تتحدث فيها، وما إلى ذلك.",{"$f":"TODAY()-3","v":"2021-07-13"},"نعم"]
["الاسم","اسم الشركة","المسمى الوظيفي\nعنوان البريد الإلكتروني\nرقم الهاتف\nموقع الويب\nارتباطات ملفات التعريف الاجتماعية\n","الموقع","ضع أي ملاحظات تريد تذكرها حول هذا الشخص؛ مكان لقاءه، وما تحدثت عنه، وما تريد إظهاره في المرة القادمة التي تتحدث فيها، وما إلى ذلك.",{"$f":"TODAY()+-3","v":"2021-07-13"},"لا"]
["الاسم","اسم الشركة","المسمى الوظيفي\nعنوان البريد الإلكتروني\nرقم الهاتف\nموقع الويب\nارتباطات ملفات التعريف الاجتماعية\n","الموقع","ضع أي ملاحظات تريد تذكرها حول هذا الشخص؛ مكان لقاءه، وما تحدثت عنه، وما تريد إظهاره في المرة القادمة التي تتحدث فيها، وما إلى ذلك.",{"$f":"TODAY()+6","v":"2021-07-22"},"لا"]

{"sheet":"المعارف المختلفون من وقت لآخر","index":2,"n_rows":7,"n_cols":8,"rows_kept":7,"merged":[[0,0,0,2]]}
["متتبع التواصل",null,null,"المعارف المختلفون من وقت لآخر"]
[]
["الاسم","الشركة","معلومات الاتصال","مكان اللقاء","الملاحظات","تاريخ المتابعة","تم","ملاحظات من المحادثة"]
["براء مستغانمي","Adventure Works","إدارة الموارد\nbaraa@adventure-works.com\n(434) 555-0123\nwww.adventure-works.com\nlinkedin.com/in/Baraa-Mestaghanmi","عطلة في فيرمونت 2016","مفيد لكل من جهة اتصال التوظيف بالإضافة إلى أسئلة التسويق",{"$f":"TODAY()+90","v":"2021-10-14"},"لا"]
["الاسم","اسم الشركة","المسمى الوظيفي\nعنوان البريد الإلكتروني\nرقم الهاتف\nموقع الويب\nارتباطات ملفات التعريف الاجتماعية\n","الموقع","ضع أي ملاحظات تريد تذكرها حول هذا الشخص؛ مكان لقاءه، وما تحدثت عنه، وما تريد إظهاره في المرة القادمة التي تتحدث فيها، وما إلى ذلك.",{"$f":"TODAY()-3","v":"2021-07-13"},"نعم"]
["الاسم","اسم الشركة","المسمى الوظيفي\nعنوان البريد الإلكتروني\nرقم الهاتف\nموقع الويب\nارتباطات ملفات التعريف الاجتماعية\n","الموقع","ضع أي ملاحظات تريد تذكرها حول هذا الشخص؛ مكان لقاءه، وما تحدثت عنه، وما تريد إظهاره في المرة القادمة التي تتحدث فيها، وما إلى ذلك.",{"$f":"TODAY()+-3","v":"2021-07-13"},"لا"]
["الاسم","اسم الشركة","المسمى الوظيفي\nعنوان البريد الإلكتروني\nرقم الهاتف\nموقع الويب\nارتباطات ملفات التعريف الاجتماعية\n","الموقع","ضع أي ملاحظات تريد تذكرها حول هذا الشخص؛ مكان لقاءه، وما تحدثت عنه، وما تريد إظهاره في المرة القادمة التي تتحدث فيها، وما إلى ذلك.",{"$f":"TODAY()+40","v":"2021-08-25"},"لا"]

{"sheet":"الاحتمالات المتوقعة","index":3,"n_rows":7,"n_cols":8,"rows_kept":7,"merged":[[0,0,0,2]]}
["متتبع التواصل",null,null,"جهات الاتصال المتوقع التواصل معهم"]
[]
["الاسم","الشركة","معلومات الاتصال","مكان اللقاء","الملاحظات","تاريخ المتابعة","تم","ملاحظات من المحادثة"]
["براء مستغانمي","مستقل","مصمم\nsomeone@example.com\n425-555-0123\nexample.com\nlinkedin.com/in/Baraa-Mestaghanmi","تخرج ابننا في 2016","متخرج حديثاً - محترف جداً. قد يكون مفيداً للعملاء في المستقبل.",{"$f":"TODAY()+89","v":"2021-10-13"},"لا"]
["الاسم","اسم الشركة","المسمى الوظيفي\nعنوان البريد الإلكتروني\nرقم الهاتف\nموقع الويب\nارتباطات ملفات التعريف الاجتماعية\n","الموقع","ضع أي ملاحظات تريد تذكرها حول هذا الشخص؛ مكان لقاءه، وما تحدثت عنه، وما تريد إظهاره في المرة القادمة التي تتحدث فيها، وما إلى ذلك.",{"$f":"TODAY()-3","v":"2021-07-13"},"نعم"]
["الاسم","اسم الشركة","المسمى الوظيفي\nعنوان البريد الإلكتروني\nرقم الهاتف\nموقع الويب\nارتباطات ملفات التعريف الاجتماعية\n","الموقع","ضع أي ملاحظات تريد تذكرها حول هذا الشخص؛ مكان لقاءه، وما تحدثت عنه، وما تريد إظهاره في المرة القادمة التي تتحدث فيها، وما إلى ذلك.",{"$f":"TODAY()+-3","v":"2021-07-13"},"لا"]
["الاسم","اسم الشركة","المسمى الوظيفي\nعنوان البريد الإلكتروني\nرقم الهاتف\nموقع الويب\nارتباطات ملفات التعريف الاجتماعية\n","الموقع","ضع أي ملاحظات تريد تذكرها حول هذا الشخص؛ مكان لقاءه، وما تحدثت عنه، وما تريد إظهاره في المرة القادمة التي تتحدث فيها، وما إلى ذلك.",{"$f":"TODAY()+30","v":"2021-08-15"},"لا"]

{"sheet":"خطة شبكات Q1","index":4,"n_rows":20,"n_cols":6,"rows_kept":20,"merged":[[0,0,0,3],[2,0,2,3],[4,0,4,3],[14,5,17,5],[18,0,18,3]]}
["خطة توسيع شبكة المعارف"]
["الإرشادات"]
["اكتب كيف تخطط لتوسيع شبكة معارفك خلال ربع السنة هذا (على سبيل المثال، إجراء المزيد من المكالمات الهاتفية، المزيد من السفر، وما إلى ذلك). ثم في كل مرة تحصل فيها على جهة اتصال جديدة، قم بتغيير عدد جهات الاتصال الفعلية التي تم إنشاؤها لتعقبها ومعرفة مدى قربك من تحقيق هدفك."]
[]
["كيف أخطط لتوسيع شبكة معارفي خلال ربع السنة هذا"]
["1. إجراء المزيد من المكالمات الهاتفية"]
["2. المزيد من السفر"]
[]
[]
[]
[]
[]
[]
["الهدف الربع سنوي لجهات الاتصال","الموعد النهائي","جهات الاتصال الربع سنوية الفعلية التي تم إنشاؤها","النتائج"]
[20,{"$f":"TODAY()","v":"2021-07-16"},12,{"$f":"IF(tblGoals[[#This Row],[الهدف الربع سنوي لجهات الاتصال]]>0,tblGoals[[#This Row],[جهات الاتصال الربع سنوية الفعلية التي تم إنشاؤها]]/tblGoals[[#This Row],[الهدف الربع سنوي لجهات الاتصال]],\"\")","v":{"v":0.6,"d":"60%"}},null,"من 0% إلى 25%\nمن 26% إلى 50%\nمن 51% إلى 75%\nمن 76% إلى 100%\n\nتغييرات اللون استناداً إلى النسبة المئوية"]
[{"$nulls":3},{"$f":"IF(tblGoals[[#This Row],[الهدف الربع سنوي لجهات الاتصال]]>0,tblGoals[[#This Row],[جهات الاتصال الربع سنوية الفعلية التي تم إنشاؤها]]/tblGoals[[#This Row],[الهدف الربع سنوي لجهات الاتصال]],\"\")","v":""}]
[{"$nulls":3},{"$f":"IF(tblGoals[[#This Row],[الهدف الربع سنوي لجهات الاتصال]]>0,tblGoals[[#This Row],[جهات الاتصال الربع سنوية الفعلية التي تم إنشاؤها]]/tblGoals[[#This Row],[الهدف الربع سنوي لجهات الاتصال]],\"\")","v":""}]
[]
["الانعكاس على النتيجة/ملاحظات للتحسين"]
["التعمق أكثر. حاول الاتصال بوقت الغداء بدلاً من ذلك."]

{"sheet":"خطة شبكات Q2","index":5,"n_rows":20,"n_cols":6,"rows_kept":20,"merged":[[0,0,0,3],[2,0,2,3],[4,0,4,3],[14,5,17,5],[18,0,18,3]]}
["خطة توسيع شبكة المعارف"]
["الإرشادات"]
["اكتب كيف تخطط لتوسيع شبكة معارفك خلال ربع السنة هذا (على سبيل المثال، إجراء المزيد من المكالمات الهاتفية، المزيد من السفر، وما إلى ذلك). ثم في كل مرة تحصل فيها على جهة اتصال جديدة، قم بتغيير عدد جهات الاتصال الفعلية التي تم إنشاؤها لتعقبها ومعرفة مدى قربك من تحقيق هدفك."]
[]
["كيف أخطط لتوسيع شبكة معارفي خلال ربع السنة هذا"]
["1. إجراء المزيد من المكالمات الهاتفية"]
["2. المزيد من السفر"]
[]
[]
[]
[]
[]
[]
["الهدف الربع سنوي لجهات الاتصال","الموعد النهائي","جهات الاتصال الربع سنوية الفعلية التي تم إنشاؤها","النتائج"]
[20,{"$f":"TODAY()","v":"2021-07-16"},12,{"$f":"IF(tblGoals3[[#This Row],[الهدف الربع سنوي لجهات الاتصال]]>0,tblGoals3[[#This Row],[جهات الاتصال الربع سنوية الفعلية التي تم إنشاؤها]]/tblGoals3[[#This Row],[الهدف الربع سنوي لجهات الاتصال]],\"\")","v":{"v":0.6,"d":"60%"}},null,"من 0% إلى 25%\nمن 26% إلى 50%\nمن 51% إلى 75%\nمن 76% إلى 100%\n\nتغييرات اللون استناداً إلى النسبة المئوية"]
[{"$nulls":3},{"$f":"IF(tblGoals3[[#This Row],[الهدف الربع سنوي لجهات الاتصال]]>0,tblGoals3[[#This Row],[جهات الاتصال الربع سنوية الفعلية التي تم إنشاؤها]]/tblGoals3[[#This Row],[الهدف الربع سنوي لجهات الاتصال]],\"\")","v":""}]
[{"$nulls":3},{"$f":"IF(tblGoals3[[#This Row],[الهدف الربع سنوي لجهات الاتصال]]>0,tblGoals3[[#This Row],[جهات الاتصال الربع سنوية الفعلية التي تم إنشاؤها]]/tblGoals3[[#This Row],[الهدف الربع سنوي لجهات الاتصال]],\"\")","v":""}]
[]
["الانعكاس على النتيجة/ملاحظات للتحسين"]
["التعمق أكثر. حاول الاتصال بوقت الغداء بدلاً من ذلك."]

{"sheet":"خطة شبكات Q3","index":6,"n_rows":20,"n_cols":6,"rows_kept":20,"merged":[[0,0,0,3],[2,0,2,3],[4,0,4,3],[14,5,17,5],[18,0,18,3]]}
["خطة توسيع شبكة المعارف"]
["الإرشادات"]
["اكتب كيف تخطط لتوسيع شبكة معارفك خلال ربع السنة هذا (على سبيل المثال، إجراء المزيد من المكالمات الهاتفية، المزيد من السفر، وما إلى ذلك). ثم في كل مرة تحصل فيها على جهة اتصال جديدة، قم بتغيير عدد جهات الاتصال الفعلية التي تم إنشاؤها لتعقبها ومعرفة مدى قربك من تحقيق هدفك."]
[]
["كيف أخطط لتوسيع شبكة معارفي خلال ربع السنة هذا"]
["1. إجراء المزيد من المكالمات الهاتفية"]
["2. المزيد من السفر"]
[]
[]
[]
[]
[]
[]
["الهدف الربع سنوي لجهات الاتصال","الموعد النهائي","جهات الاتصال الربع سنوية الفعلية التي تم إنشاؤها","النتائج"]
[20,{"$f":"TODAY()","v":"2021-07-16"},12,{"$f":"IF(tblGoals34[[#This Row],[الهدف الربع سنوي لجهات الاتصال]]>0,tblGoals34[[#This Row],[جهات الاتصال الربع سنوية الفعلية التي تم إنشاؤها]]/tblGoals34[[#This Row],[الهدف الربع سنوي لجهات الاتصال]],\"\")","v":{"v":0.6,"d":"60%"}},null,"من 0% إلى 25%\nمن 26% إلى 50%\nمن 51% إلى 75%\nمن 76% إلى 100%\n\nتغييرات اللون استناداً إلى النسبة المئوية"]
[{"$nulls":3},{"$f":"IF(tblGoals34[[#This Row],[الهدف الربع سنوي لجهات الاتصال]]>0,tblGoals34[[#This Row],[جهات الاتصال الربع سنوية الفعلية التي تم إنشاؤها]]/tblGoals34[[#This Row],[الهدف الربع سنوي لجهات الاتصال]],\"\")","v":""}]
[{"$nulls":3},{"$f":"IF(tblGoals34[[#This Row],[الهدف الربع سنوي لجهات الاتصال]]>0,tblGoals34[[#This Row],[جهات الاتصال الربع سنوية الفعلية التي تم إنشاؤها]]/tblGoals34[[#This Row],[الهدف الربع سنوي لجهات الاتصال]],\"\")","v":""}]
[]
["الانعكاس على النتيجة/ملاحظات للتحسين"]
["التعمق أكثر. حاول الاتصال بوقت الغداء بدلاً من ذلك."]

{"sheet":"خطة شبكات Q4","index":7,"n_rows":20,"n_cols":6,"rows_kept":20,"merged":[[0,0,0,3],[2,0,2,3],[4,0,4,3],[14,5,17,5],[18,0,18,3]]}
["خطة توسيع شبكة المعارف"]
["الإرشادات"]
["اكتب كيف تخطط لتوسيع شبكة معارفك خلال ربع السنة هذا (على سبيل المثال، إجراء المزيد من المكالمات الهاتفية، المزيد من السفر، وما إلى ذلك). ثم في كل مرة تحصل فيها على جهة اتصال جديدة، قم بتغيير عدد جهات الاتصال الفعلية التي تم إنشاؤها لتعقبها ومعرفة مدى قربك من تحقيق هدفك."]
[]
["كيف أخطط لتوسيع شبكة معارفي خلال ربع السنة هذا"]
["1. إجراء المزيد من المكالمات الهاتفية"]
["2. المزيد من السفر"]
[]
[]
[]
[]
[]
[]
["الهدف الربع سنوي لجهات الاتصال","الموعد النهائي","جهات الاتصال الربع سنوية الفعلية التي تم إنشاؤها","النتائج"]
[20,{"$f":"TODAY()","v":"2021-07-16"},12,{"$f":"IF(tblGoals348[[#This Row],[الهدف الربع سنوي لجهات الاتصال]]>0,tblGoals348[[#This Row],[جهات الاتصال الربع سنوية الفعلية التي تم إنشاؤها]]/tblGoals348[[#This Row],[الهدف الربع سنوي لجهات الاتصال]],\"\")","v":{"v":0.6,"d":"60%"}},null,"من 0% إلى 25%\nمن 26% إلى 50%\nمن 51% إلى 75%\nمن 76% إلى 100%\n\nتغييرات اللون استناداً إلى النسبة المئوية"]
[{"$nulls":3},{"$f":"IF(tblGoals348[[#This Row],[الهدف الربع سنوي لجهات الاتصال]]>0,tblGoals348[[#This Row],[جهات الاتصال الربع سنوية الفعلية التي تم إنشاؤها]]/tblGoals348[[#This Row],[الهدف الربع سنوي لجهات الاتصال]],\"\")","v":""}]
[{"$nulls":3},{"$f":"IF(tblGoals348[[#This Row],[الهدف الربع سنوي لجهات الاتصال]]>0,tblGoals348[[#This Row],[جهات الاتصال الربع سنوية الفعلية التي تم إنشاؤها]]/tblGoals348[[#This Row],[الهدف الربع سنوي لجهات الاتصال]],\"\")","v":""}]
[]
["الانعكاس على النتيجة/ملاحظات للتحسين"]
["التعمق أكثر. حاول الاتصال بوقت الغداء بدلاً من ذلك."]